fUSD/lending_fUSD_20240121
["ID","MTS","AMOUNT","RATE_DAILY","PERIOD"]
[312396006,1705858287998,-500.0,0.00041643,7]
[312396007,1705858288007,-500.0,0.00041643,31]
[312396008,1705858288016,-500.0,0.00041643,31]
[312396009,1705858288025,-500.0,0.00041643,31]
[312396010,1705858288035,-500.0,0.00041643,31]
[312396011,1705858288045,-500.0,0.00041643,31]
[312396012,1705858288057,-500.0,0.00041643,31]
[312396013,1705858288066,-500.0,0.00041643,31]
[312396014,1705858288075,-605.12,0.00041643,31]
[312396015,1705858288084,-500.0,0.00041643,31]
[312396016,1705858288094,-500.0,0.00041643,31]
[312396017,1705858288103,-514.85474542,0.00041643,31]
[312396018,1705858288113,-500.0,0.00041643,31]
[312396019,1705858288122,-516.96543858,0.00041643,31]
[312396020,1705858288131,-500.0,0.00041643,31]
[312396021,1705858288141,-500.0,0.00041643,31]
[312396022,1705858288151,-500.0,0.00041643,31]
[312396023,1705858288160,-500.0,0.00041643,31]
[312396024,1705858288169,-500.0,0.00041643,31]
[312396025,1705858288179,-500.0,0.00041643,31]
[312396026,1705858288188,-500.0,0.00041643,31]
[312396027,1705858288198,-508.15281704,0.00041643,31]
[312396028,1705858288207,-500.0,0.00041643,31]
[312396029,1705858288217,-542.52,0.00041643,31]
[312396030,1705858288227,-500.0,0.00041643,31]
[312396031,1705858288236,-500.0,0.00041643,31]
[312396032,1705858288245,-419.55301576,0.00041643,31]
[312396033,1705858288258,-500.0,0.00041643,31]
[312396034,1705858288268,-781.08,0.00041643,31]
[312396035,1705858288278,-532.19357422,0.00041643,31]
[312396036,1705858288287,-1000.0,0.00041643,7]
[312396037,1705858288297,-500.0,0.00041643,31]
[312396038,1705858288307,-500.0,0.00041643,31]
[312396039,1705858288316,-500.0,0.00041643,31]
[312396040,1705858288326,-521.49,0.00041643,31]
[312396041,1705858288335,-500.0,0.00041643,31]
[312396042,1705858288345,-671.59,0.00041643,31]
[312396043,1705858288355,-518.55,0.00041643,31]
[312396044,1705858288365,-500.0,0.00041643,31]
[312396045,1705858288374,-500.0,0.00041643,31]
[312396046,1705858288385,-500.0,0.00041643,31]
[312396047,1705858288396,-500.0,0.00041643,31]
[312396048,1705858288406,-500.0,0.00041643,31]
[312396049,1705858288418,-576.57,0.00041643,31]
[312396050,1705858288429,-500.0,0.00041643,31]
[312396051,1705858288439,-500.0,0.00041643,31]
[312396052,1705858288450,-639.66,0.00041643,31]
[312396053,1705858288461,-500.0,0.00041643,31]
[312396054,1705858288472,-500.0,0.00041643,31]
[312396055,1705858288482,-530.80586626,0.00041643,31]
[312396056,1705858288493,-500.0,0.00041643,31]
[312396057,1705858288503,-500.0,0.00041643,31]
[312396058,1705858288515,-500.0,0.00041643,31]
[312396059,1705858288525,-500.0,0.00041643,31]
[312396060,1705858288535,-500.0,0.00041643,31]
[312396061,1705858288546,-500.0,0.00041643,31]
[312396062,1705858288559,-500.0,0.00041643,31]
[312396063,1705858288570,-500.0,0.00041643,31]
[312396064,1705858288581,-500.0,0.00041643,31]
[312396065,1705858288592,-500.0,0.00041643,31]
[312396066,1705858288603,-500.0,0.00041643,31]
[312396067,1705858288613,-500.0,0.00041643,31]
[312396068,1705858288624,-500.0,0.00041643,31]
[312396069,1705858288635,-500.0,0.00041643,31]
[312396070,1705858288646,-514.70958941,0.00041643,31]
[312396071,1705858288655,-500.0,0.00041643,31]
[312396072,1705858288665,-500.0,0.00041643,31]
[312396073,1705858288674,-500.0,0.00041643,31]
[312396074,1705858288683,-500.0,0.00041643,31]
[312396075,1705858288692,-500.0,0.00041643,31]
[312396076,1705858288702,-500.0,0.00041643,31]
[312396077,1705858288711,-500.0,0.00041643,31]
[312396078,1705858288721,-500.0,0.00041643,31]
[312396079,1705858288731,-665.96,0.00041643,31]
[312396080,1705858288740,-500.0,0.00041643,31]
[312396081,1705858288750,-500.0,0.00041643,31]
[312396082,1705858288759,-500.0,0.00041643,31]
[312396083,1705858288769,-606.4,0.00041643,31]
[312396084,1705858288778,-500.0,0.00041643,31]
[312396085,1705858288787,-500.0,0.00041643,31]
[312396086,1705858288797,-500.0,0.00041643,31]
[312396087,1705858288806,-500.0,0.00041643,31]
[312396088,1705858288816,-500.0,0.00041643,31]
[312396089,1705858288825,-500.0,0.00041643,31]
[312396090,1705858288834,-500.0,0.00041643,31]
[312396091,1705858288843,-610.64,0.00041643,31]
[312396092,1705858288852,-500.0,0.00041643,31]
[312396093,1705858288861,-500.0,0.00041643,31]
[312396094,1705858288870,-500.0,0.00041643,31]
[312396095,1705858288881,-619.69,0.00041643,31]
[312396096,1705858288890,-556.51,0.00041643,31]
[312396097,1705858288900,-1402.46,0.00041643,31]
[312396098,1705858288910,-500.0,0.00041643,31]
[312396099,1705858288921,-500.0,0.00041643,31]
[312396100,1705858288930,-804.15,0.00041643,31]
[312396101,1705858288940,-500.0,0.00041643,31]
[312396102,1705858288949,-500.0,0.00041643,31]
[312396103,1705858288959,-500.0,0.00041643,31]
[312396104,1705858288968,-500.0,0.00041643,31]
[312396105,1705858288977,-500.0,0.00041643,31]
[312396106,1705858288987,-500.0,0.00041643,31]
[312396107,1705858288997,-500.0,0.00041643,31]
[312396108,1705858289007,-500.0,0.00041643,31]
[312396109,1705858289017,-500.0,0.00041643,31]
[312396110,1705858289026,-500.0,0.00041643,31]
[312396111,1705858289037,-500.0,0.00041643,31]
[312396112,1705858289046,-500.0,0.00041643,31]
[312396113,1705858289060,-500.0,0.00041643,31]
[312396114,1705858289069,-500.0,0.00041643,31]
[312396115,1705858289079,-500.0,0.00041643,31]
[312396116,1705858289089,-500.0,0.00041643,31]
[312396117,1705858289098,-502.58920994,0.00041643,31]
[312396118,1705858289108,-500.0,0.00041643,31]
[312396119,1705858289118,-500.0,0.00041643,31]
[312396120,1705858289127,-500.0,0.00041643,31]
[312396121,1705858289138,-500.0,0.00041643,31]
[312396122,1705858289148,-523.03413198,0.00041643,31]
[312396123,1705858289158,-405.60876499,0.00041643,31]
[312396124,1705858289168,-500.0,0.00041643,31]
[312396125,1705858289178,-179.42119509,0.00041643,31]
[312396126,1705858289187,-500.0,0.00041643,31]
[312396127,1705858289197,-500.0,0.00041643,31]
[312396128,1705858289206,-500.0,0.00041643,31]
[312396129,1705858289217,-509.73,0.00041643,31]
[312396130,1705858289226,-500.0,0.00041643,31]
[312396131,1705858289235,-637.31,0.00041643,31]
[312396132,1705858289245,-501.67414029,0.00041643,31]
[312396133,1705858289255,-500.0,0.00041643,31]
[312396134,1705858289264,-819.1,0.00041643,31]
[312396135,1705858289274,-500.0,0.00041643,31]
[312396136,1705858289283,-500.0,0.00041643,31]
[312396137,1705858289293,-500.0,0.00041643,31]
[312396138,1705858289302,-854.66,0.00041643,31]
[312396139,1705858289311,-500.0,0.00041643,31]
[312396140,1705858289321,-500.0,0.00041643,31]
[312396141,1705858289330,-500.0,0.00041643,31]
[312396142,1705858289339,-668.54,0.00041643,31]
[312396143,1705858289349,-523.09893489,0.00041643,31]
[312396144,1705858289358,-500.0,0.00041643,31]
[312396145,1705858289369,-256.51518969,0.00041643,31]
[312396146,1705858289379,-500.0,0.00041643,31]
[312396147,1705858289389,-500.0,0.00041643,31]
[312396148,1705858289399,-500.0,0.00041643,31]
[312396149,1705858289409,-500.0,0.00041643,31]
[312396150,1705858289419,-500.0,0.00041643,31]
[312396151,1705858289429,-761.55,0.00041643,31]
[312396152,1705858289439,-524.62,0.00041643,31]
[312396153,1705858289450,-525.75709752,0.00041643,31]
[312396154,1705858289460,-500.0,0.00041643,31]
[312396155,1705858289471,-667.4,0.00041643,31]
[312396156,1705858289481,-500.0,0.00041643,31]
[312396157,1705858289493,-500.6119561,0.00041643,31]
[312396158,1705858289502,-500.0,0.00041643,31]
[312396159,1705858289514,-881.65,0.00041643,31]
[312396160,1705858289524,-519.32,0.00041643,31]
[312396161,1705858289533,-500.0,0.00041643,31]
[312396162,1705858289544,-514.45,0.00041643,31]
[312396163,1705858289554,-500.0,0.00041643,31]
[312396164,1705858289564,-500.0,0.00041643,31]
[312396165,1705858289573,-663.24,0.00041643,31]
[312396166,1705858289583,-500.0,0.00041643,31]
[312396167,1705858289593,-500.0,0.00041643,31]
[312396168,1705858289604,-500.0,0.00041643,31]
[312396169,1705858289613,-500.0,0.00041643,31]
[312396170,1705858289622,-500.0,0.00041643,31]
[312396171,1705858289632,-500.0,0.00041643,31]
[312396172,1705858289643,-500.0,0.00041643,31]
[312396173,1705858289653,-500.0,0.00041643,31]
[312396174,1705858289664,-555.60316394,0.00041643,31]
[312396175,1705858289674,-667.18,0.00041643,31]
[312396176,1705858289684,-500.0,0.00041643,31]
[312396177,1705858289694,-500.0,0.00041643,31]
[312396178,1705858289706,-628.26,0.00041643,31]
[312396179,1705858289715,-585.56,0.00041643,31]
[312396180,1705858289725,-380.91091261,0.00041643,31]
[312396181,1705858289736,-500.0,0.00041643,31]
[312396182,1705858289747,-500.0,0.00041643,31]
[312396183,1705858289757,-500.0,0.00041643,31]
[312396184,1705858289766,-192.8864349,0.00041643,31]
[312396185,1705858289776,-500.0,0.00041643,31]
[312396186,1705858289786,-500.0,0.00041643,31]
[312396187,1705858289795,-500.0,0.00041643,31]
[312396188,1705858289805,-500.0,0.00041643,31]
[312396189,1705858289814,-500.0,0.00041643,31]
[312396190,1705858289824,-500.0,0.00041643,31]
[312396191,1705858289834,-429.3153703,0.00041643,31]
[312396192,1705858289844,-500.0,0.00041643,31]
[312396193,1705858289855,-500.0,0.00041643,31]
[312396194,1705858289865,-519.6400808,0.00041643,31]
[312396195,1705858289876,-500.0,0.00041643,31]
[312396196,1705858289887,-1000.0,0.00041643,7]
[312396197,1705858289897,-500.0,0.00041643,31]
[312396198,1705858289907,-771.66,0.00041643,31]
[312396199,1705858289917,-659.58,0.00041643,31]
[312396200,1705858289927,-601.64,0.00041643,15]
[312396201,1705858289937,-500.0,0.00041643,31]
[312396202,1705858289946,-927.1,0.00041643,31]
[312396203,1705858289957,-752.58,0.00041643,31]
[312396204,1705858289966,-500.0,0.00041643,31]
[312396205,1705858289976,-500.25994026,0.00041643,31]
[312396206,1705858289987,-586.48,0.00041643,31]
[312396207,1705858289998,-500.0,0.00041643,31]
[312396208,1705858290008,-500.0,0.00041643,31]
[312396209,1705858290018,-500.0,0.00041643,31]
[312396210,1705858290028,-500.0,0.00041643,31]
[312396211,1705858290038,-500.0,0.00041643,31]
[312396212,1705858290048,-500.0,0.00041643,31]
[312396213,1705858290060,-500.0,0.00041643,31]
[312396214,1705858290070,-500.0,0.00041643,31]
[312396215,1705858290081,-500.0,0.00041643,31]
[312396216,1705858290092,-252.06965797,0.00041643,31]
[312396217,1705858290102,-546.44270172,0.00041643,31]
[312396218,1705858290113,-500.0,0.00041643,31]
[312396219,1705858290123,-500.0,0.00041643,31]
[312396220,1705858290134,-500.0,0.00041643,31]
[312396221,1705858290144,-500.0,0.00041643,31]
[312396222,1705858290153,-500.0,0.00041643,31]
[312396223,1705858290163,-659.42,0.00041643,31]
[312396224,1705858290172,-500.0,0.00041643,31]
[312396225,1705858290182,-500.0,0.00041643,31]
[312396226,1705858290192,-500.0,0.00041643,31]
[312396227,1705858290202,-589.3,0.00041643,31]
[312396228,1705858290212,-500.0,0.00041643,31]
[312396229,1705858290223,-369.01256844,0.00041643,31]
[312396230,1705858290233,-500.0,0.00041643,31]
[312396231,1705858290244,-500.0,0.00041643,31]
[312396232,1705858290254,-500.0,0.00041643,31]
[312396233,1705858290264,-500.0,0.00041643,31]
[312396234,1705858290275,-500.0,0.00041643,31]
[312396235,1705858290285,-500.0,0.00041643,31]
[312396236,1705858290295,-500.0,0.00041643,31]
[312396237,1705858290305,-500.0,0.00041643,31]
[312396238,1705858290319,-547.34,0.00041643,31]
[312396239,1705858290329,-500.0,0.00041643,31]
[312396240,1705858290340,-500.0,0.00041643,31]
[312396241,1705858290350,-627.71,0.00041643,31]
[312396242,1705858290359,-500.0,0.00041643,31]
[312396243,1705858290369,-500.0,0.00041643,31]
[312396244,1705858290379,-500.0,0.00041643,31]
[312396245,1705858290390,-500.0,0.00041643,31]
[312396246,1705858290405,-500.0,0.00041643,31]
[312396247,1705858290414,-557.09276438,0.00041643,31]
[312396248,1705858290423,-500.0,0.00041643,31]
[312396249,1705858290433,-500.0,0.00041643,31]
[312396250,1705858290443,-500.0,0.00041643,31]
[312396251,1705858290453,-904.01,0.00041643,31]
[312396252,1705858290463,-500.0,0.00041643,31]
[312396253,1705858290473,-500.0,0.00041643,31]
[312396254,1705858290483,-500.0,0.00041643,31]
[312396255,1705858290493,-500.0,0.00041643,31]
[312396256,1705858290503,-744.5,0.00041643,31]
[312396257,1705858290514,-500.0,0.00041643,31]
[312396258,1705858290526,-528.38,0.00041643,31]
[312396259,1705858290537,-500.0,0.00041643,31]
[312396260,1705858290547,-500.0,0.00041643,31]
[312396261,1705858290557,-500.0,0.00041643,31]
[312396262,1705858290567,-500.0,0.00041643,31]
[312396263,1705858290796,-500.0,0.00041643,31]
[312396264,1705858290807,-541.26,0.00041643,31]
[312396265,1705858290816,-500.0,0.00041643,31]
[312396266,1705858290830,-500.0,0.00041643,31]
[312396267,1705858290839,-616.68,0.00041643,31]
[312396268,1705858290849,-500.0,0.00041643,31]
[312396269,1705858290858,-589.25,0.00041643,31]
[312396270,1705858290868,-500.0,0.00041643,31]
[312396271,1705858290877,-681.77,0.00041643,31]
[312396272,1705858290887,-500.0,0.00041643,31]
[312396273,1705858290896,-500.0,0.00041643,31]
[312396274,1705858290906,-500.0,0.00041643,31]
[312396275,1705858290915,-500.0,0.00041643,31]
[312396276,1705858290925,-500.0,0.00041643,31]
[312396277,1705858290935,-500.0,0.00041643,31]
[312396278,1705858290945,-500.0,0.00041643,31]
[312396279,1705858290955,-500.0,0.00041643,31]
[312396280,1705858290965,-500.0,0.00041643,31]
[312396281,1705858290975,-689.41,0.00041643,31]
[312396282,1705858290984,-733.26,0.00041643,31]
[312396283,1705858290994,-516.09,0.00041643,31]
[312396284,1705858291003,-521.72,0.00041643,31]
[312396285,1705858291014,-501.20968098,0.00041643,31]
[312396286,1705858291023,-500.0,0.00041643,31]
[312396287,1705858291033,-648.59,0.00041643,31]
[312396288,1705858291045,-500.0,0.00041643,31]
[312396289,1705858291061,-500.0,0.00041643,31]
[312396290,1705858291071,-300.0,0.00041643,31]
[312396291,1705858291081,-1334.82,0.00041643,31]
[312396292,1705858291093,-500.0,0.00041643,31]
[312396293,1705858291103,-500.0,0.00041643,31]
[312396294,1705858291113,-500.0,0.00041643,31]
[312396295,1705858291123,-500.0,0.00041643,2]
[312396296,1705858291132,-634.48101841,0.00041643,31]
[312396297,1705858291142,-500.0,0.00041643,31]
[312396298,1705858291152,-500.91893984,0.00041643,31]
[312396299,1705858291162,-543.26,0.00041643,31]
[312396300,1705858291171,-558.46,0.00041643,31]
[312396301,1705858291182,-500.0,0.00041643,31]
[312396302,1705858291191,-500.0,0.00041643,31]
[312396303,1705858291201,-1416.38,0.00041643,2]
[312396304,1705858291210,-500.0,0.00041643,31]
[312396305,1705858291220,-772.93,0.00041643,31]
[312396306,1705858291231,-537.8,0.00041643,31]
[312396307,1705858291241,-646.27,0.00041643,31]
[312396308,1705858291250,-500.0,0.00041643,31]
[312396309,1705858291261,-1451.51,0.00041643,31]
[312396310,1705858291271,-500.0,0.00041643,31]
[312396311,1705858291281,-500.0,0.00041643,31]
[312396312,1705858291291,-500.0,0.00041643,31]
[312396313,1705858291301,-510.2603063,0.00041643,31]
[312396314,1705858291311,-500.0,0.00041643,31]
[312396315,1705858291321,-1000.0,0.00041643,50]
[312396316,1705858291331,-618.07,0.00041643,31]
[312396317,1705858291341,-500.0,0.00041643,31]
[312396318,1705858291351,-500.0,0.00041643,31]
[312396319,1705858291361,-684.61,0.00041643,31]
[312396320,1705858291370,-692.68,0.00041643,31]
[312396321,1705858291380,-500.0,0.00041643,31]
[312396322,1705858291389,-500.0,0.00041643,31]
[312396323,1705858291399,-833.11,0.00041643,31]
[312396324,1705858291408,-500.0,0.00041643,31]
[312396325,1705858291418,-500.0,0.00041643,31]
[312396326,1705858291427,-500.0,0.00041643,31]
[312396327,1705858291436,-765.98,0.00041643,31]
[312396328,1705858291446,-635.0,0.00041643,31]
[312396329,1705858291455,-569.6,0.00041643,31]
[312396330,1705858291465,-500.0,0.00041643,31]
[312396331,1705858291475,-500.0,0.00041643,31]
[312396332,1705858291485,-500.0,0.00041643,31]
[312396333,1705858291495,-500.0,0.00041643,31]
[312396334,1705858291505,-997.4,0.00041643,31]
[312396335,1705858291514,-286.32772675,0.00041643,31]
[312396336,1705858291524,-500.0,0.00041643,31]
[312396337,1705858291533,-500.0,0.00041643,31]
[312396338,1705858291543,-500.0,0.00041643,31]
[312396339,1705858291553,-359.51744659,0.00041643,31]
[312396340,1705858291563,-1000.0,0.00041643,7]
[312396341,1705858291572,-500.0,0.00041643,31]
[312396342,1705858291582,-500.0,0.00041643,31]
[312396343,1705858291591,-796.16,0.00041643,31]
[312396344,1705858291601,-500.0,0.00041643,31]
[312396345,1705858291610,-1684.69879054,0.00041643,31]
[312396346,1705858291620,-500.0,0.00041643,31]
[312396347,1705858291629,-562.29,0.00041643,31]
[312396348,1705858291639,-530.76,0.00041643,31]
[312396349,1705858291648,-500.0,0.00041643,31]
[312396350,1705858291659,-500.0,0.00041643,31]
[312396351,1705858291669,-869.35,0.00041643,31]
[312396352,1705858291679,-500.0,0.00041643,31]
[312396353,1705858291689,-559.68,0.00041643,31]
[312396354,1705858291699,-500.0,0.00041643,31]
[312396355,1705858291709,-500.0,0.00041643,31]
[312396356,1705858291719,-500.0,0.00041643,31]
[312396357,1705858291729,-500.0,0.00041643,31]
[312396358,1705858291739,-532.62,0.00041643,31]
[312396359,1705858291749,-500.0,0.00041643,31]
[312396360,1705858291758,-500.0,0.00041643,31]
[312396361,1705858291768,-796.99,0.00041643,31]
[312396362,1705858291778,-1317.0,0.00041643,31]
[312396363,1705858291787,-500.0,0.00041643,31]
[312396364,1705858291797,-500.0,0.00041643,31]
[312396365,1705858291806,-409.25410718,0.00041643,31]
[312396366,1705858291816,-500.0,0.00041643,31]
[312396367,1705858291825,-662.26,0.00041643,31]
[312396368,1705858291835,-504.18062203,0.00041643,31]
[312396369,1705858291844,-500.0,0.00041643,31]
[312396370,1705858291853,-500.0,0.00041643,31]
[312396371,1705858291863,-517.51182013,0.00041643,5]
[312396372,1705858291872,-737.04,0.00041643,31]
[312396373,1705858291882,-500.0,0.00041643,31]
[312396374,1705858291891,-500.0,0.00041643,31]
[312396375,1705858291900,-500.0,0.00041643,31]
[312396376,1705858291910,-500.0,0.00041643,31]
[312396377,1705858291919,-500.0,0.00041643,31]
[312396378,1705858291930,-500.0,0.00041643,31]
[312396379,1705858291940,-500.0,0.00041643,31]
[312396380,1705858291950,-670.12,0.00041643,31]
[312396381,1705858291960,-843.71,0.00041643,31]
[312396382,1705858291970,-500.0,0.00041643,31]
[312396383,1705858291980,-500.0,0.00041643,31]
[312396384,1705858291990,-500.0,0.00041643,31]
[312396385,1705858292000,-500.0,0.00041643,31]
[312396386,1705858292010,-500.0,0.00041643,31]
[312396387,1705858292019,-897.27,0.00041643,31]
[312396388,1705858292029,-500.0,0.00041643,31]
[312396389,1705858292039,-500.0,0.00041643,31]
[312396390,1705858292049,-500.0,0.00041643,31]
[312396391,1705858292062,-1007.44,0.00041643,31]
[312396392,1705858292072,-500.0,0.00041643,31]
[312396393,1705858292082,-500.0,0.00041643,31]
[312396394,1705858292093,-500.0,0.00041643,31]
[312396395,1705858292104,-500.0,0.00041643,31]
[312396396,1705858292113,-508.82193844,0.00041643,31]
[312396397,1705858292123,-500.0,0.00041643,31]
[312396398,1705858292134,-500.0,0.00041643,31]
[312396399,1705858292143,-500.0,0.00041643,31]
[312396400,1705858292153,-748.65,0.00041643,31]
[312396401,1705858292163,-500.0,0.00041643,31]
[312396402,1705858292173,-500.0,0.00041643,31]
[312396403,1705858292183,-500.0,0.00041643,31]
[312396404,1705858292193,-500.0,0.00041643,60]
[312396405,1705858292203,-500.0,0.00041643,31]
[312396406,1705858292213,-500.0,0.00041643,31]
[312396407,1705858292223,-1126.77,0.00041643,31]
[312396408,1705858292233,-796.98,0.00041643,31]
[312396409,1705858292242,-500.0,0.00041643,31]
[312396410,1705858292252,-500.0,0.00041643,31]
[312396411,1705858292261,-500.0,0.00041643,31]
[312396412,1705858292271,-788.72,0.00041643,31]
[312396413,1705858292281,-176.50730092,0.00041643,31]
[312396414,1705858292290,-500.0,0.00041643,31]
[312396415,1705858292300,-530.34,0.00041643,31]
[312396416,1705858292310,-500.0,0.00041643,31]
[312396417,1705858292320,-500.0,0.00041643,31]
[312396418,1705858292329,-500.0,0.00041643,31]
[312396419,1705858292339,-500.0,0.00041643,5]
[312396420,1705858292348,-600.0,0.00041643,7]
[312396421,1705858292359,-500.0,0.00041643,31]
[312396422,1705858292369,-1147.47,0.00041643,31]
[312396423,1705858292380,-500.0,0.00041643,31]
[312396424,1705858292390,-500.0,0.00041643,31]
[312396425,1705858292401,-500.0,0.00041643,31]
[312396426,1705858292411,-883.78,0.00041643,31]
[312396427,1705858292422,-500.0,0.00041643,31]
[312396428,1705858292433,-500.0,0.00041643,31]
[312396429,1705858292443,-590.82,0.00041643,31]
[312396430,1705858292454,-500.0,0.00041643,31]
[312396431,1705858292464,-500.0,0.00041643,31]
[312396432,1705858292475,-715.34,0.00041643,31]
[312396433,1705858292485,-1084.43,0.00041643,31]
[312396434,1705858292495,-500.0,0.00041643,31]
[312396435,1705858292505,-500.0,0.00041643,31]
[312396436,1705858292515,-500.0,0.00041643,31]
[312396437,1705858292525,-500.0,0.00041643,31]
[312396438,1705858292535,-500.0,0.00041643,31]
[312396439,1705858292545,-500.0,0.00041643,31]
[312396440,1705858292555,-504.9,0.00041643,31]
[312396441,1705858292565,-784.14,0.00041643,2]
[312396442,1705858292575,-720.62,0.00041643,31]
[312396443,1705858292585,-735.28,0.00041643,31]
[312396444,1705858292595,-500.0,0.00041643,31]
[312396445,1705858292604,-500.0,0.00041643,31]
[312396446,1705858292614,-500.0,0.00041643,31]
[312396447,1705858292624,-500.0,0.00041643,31]
[312396448,1705858292634,-588.81,0.00041643,31]
[312396449,1705858292644,-857.01,0.00041643,31]
[312396450,1705858292654,-609.36,0.00041643,31]
[312396451,1705858292663,-500.0,0.00041643,31]
[312396452,1705858292674,-500.0,0.00041643,31]
[312396453,1705858292684,-698.28,0.00041643,20]
[312396454,1705858292694,-500.0,0.00041643,31]
[312396455,1705858292704,-500.0,0.00041643,31]
[312396456,1705858292714,-500.0,0.00041643,31]
[312396457,1705858292723,-500.0,0.00041643,31]
[312396458,1705858292733,-640.31,0.00041643,31]
[312396459,1705858292743,-500.0,0.00041643,31]
[312396460,1705858292752,-589.47,0.00041643,31]
[312396461,1705858292762,-892.27,0.00041643,31]
[312396462,1705858292771,-689.61,0.00041643,31]
[312396463,1705858292780,-500.0,0.00041643,31]
[312396464,1705858292789,-1059.2,0.00041643,31]
[312396465,1705858292799,-1142.77,0.00041643,31]
[312396466,1705858292808,-673.82,0.00041643,31]
[312396467,1705858292817,-500.0,0.00041643,31]
[312396468,1705858292827,-523.1,0.00041643,31]
[312396469,1705858292836,-613.32,0.00041643,31]
[312396470,1705858292846,-685.54,0.00041643,31]
[312396471,1705858292855,-500.0,0.00041643,31]
[312396472,1705858292864,-626.04,0.00041643,31]
[312396473,1705858292874,-210.87244568,0.00041643,31]
[312396474,1705858292884,-500.0,0.00041643,31]
[312396475,1705858292893,-500.0,0.00041643,31]
[312396476,1705858292902,-500.0,0.00041643,31]
[312396477,1705858292912,-500.0,0.00041643,31]
[312396478,1705858292922,-500.0,0.00041643,31]
[312396479,1705858292931,-536.10311136,0.00041643,31]
[312396480,1705858292941,-937.48,0.00041643,31]
[312396481,1705858292951,-501.23,0.00041643,31]
[312396482,1705858292961,-627.4,0.00041643,31]
[312396483,1705858292971,-1287.05,0.00041643,31]
[312396484,1705858292981,-500.0,0.00041643,31]
[312396485,1705858292991,-500.0,0.00041643,31]
[312396486,1705858293001,-500.0,0.00041643,31]
[312396487,1705858293011,-1020.35,0.00041643,31]
[312396488,1705858293021,-500.0,0.00041643,31]
[312396489,1705858293030,-1030.81,0.00041643,31]
[312396490,1705858293040,-500.0,0.00041643,31]
[312396491,1705858293051,-500.0,0.00041643,31]
[312396492,1705858293063,-944.11,0.00041643,31]
[312396493,1705858293073,-500.0,0.00041643,31]
[312396494,1705858293082,-500.0,0.00041643,31]
[312396495,1705858293092,-500.0,0.00041643,31]
[312396496,1705858293102,-500.0,0.00041643,31]
[312396497,1705858293112,-616.31,0.00041643,31]
[312396498,1705858293122,-500.0,0.00041643,31]
[312396499,1705858293132,-801.3,0.00041643,31]
[312396500,1705858293142,-500.0,0.00041643,31]
[312396501,1705858293151,-511.83624277,0.00041643,31]
[312396502,1705858293161,-500.0,0.00041643,31]
[312396503,1705858293171,-500.0,0.00041643,31]
[312396504,1705858293181,-785.3,0.00041643,31]
[312396505,1705858293190,-500.0,0.00041643,31]